Cogmind - Beta 15 @@@ ROGUE MODE // 2025.08.25 @ 01:02:37 Player: Mogwok Wargfriend Result: Destroyed by BE-XOI(R) with Subdweller Laser Performance ------------- Evolutions (0) 0 Regions Visited (2) 400 Robots Destroyed (43) 215 Value Destroyed (765) 765 Prototype IDs (5) 100 Alien Tech Used (0) 0 Bonus (0) 0 TOTAL SCORE: 1480 Bonus ------- None Cogmind --------- Core Integrity 0/250 Matter 291/300 Energy 239/250 System Corruption 3% Temperature Cool (6) Movement Rolling (120) Ox1 Location -10/Subcaves Parts ------- > --- POWER (1) -------- Ion Engine > --- PROPULSION (2) --- Improved Treads Subdweller Monowheel > --- UTILITY (2) ------ Scrap Shield > --- WEAPON (2) ------- Medium Laser Battle Rifle > --- INVENTORY (5) ---- Improved Treads Wheel Beam Cannon Light Cannon Mining Laser Peak State ------------ > --- POWER ------------ Light Ion Engine > --- PROPULSION ------- Improved Treads Compact Wheel > --- UTILITY ---------- Huge Storage Unit Hardened Light Armor Plating > --- WEAPON ----------- Medium Laser Light Assault Rifle > --- INVENTORY -------- Ion Engine Light Ion Engine Light Treads Improved Treads Improved Treads Improved Treads Wheel Wheel Wheel Improved Heat Sink Improved Heat Sink Huge Storage Unit High-capacity Battery High-capacity Matter Pod Terrain Scanner Hardened Light Armor Plating Hardened Light Armor Plating Hardened Light Armor Plating Medium Laser Medium Laser Medium Laser Assault Rifle Light Cannon Mining Laser Hammer [Rating: 12] Favorites ----------- Power Ion Engine Engine Ion Engine Propulsion Wheel Treads Light Treads Wheel Wheel Utility Huge Storage Unit Device Seismic Detector Storage Huge Storage Unit Protection Scrap Shield Weapon Medium Laser Energy Gun Medium Laser Ballistic Gun Assault Rifle Special Weapon Mining Laser Build | -11 -10 -10 ------- Run | Yrd Mat Sub Slots Evolved . | . . . Power . | . . . Propulsion . | . . . Utility . | . . . Weapon . | . . . Parts Attached 26 | 7 10 9 Power 3 | 1 1 1 Engine 3 | 1 1 1 Core . | . . . Reactor . | . . . Propulsion 9 | 2 4 3 Treads 3 | 1 1 1 Leg . | . . . Wheel 6 | 1 3 2 Hover . | . . . Flight . | . . . Utility 7 | 2 4 1 Device 1 | 1 . . Storage 4 | 1 3 . Processor . | . . . Hackware . | . . . Protection 2 | . 1 1 Artifact . | . . . Weapon 7 | 2 1 4 Energy Gun 2 | 1 . 1 Energy Cannon . | . . . Ballistic Gun 4 | 1 1 2 Ballistic Cannon . | . . . Launcher . | . . . Special Weapon 1 | . . 1 Impact Weapon . | . . . Slashing Weapon . | . . . Piercing Weapon . | . . . Special Melee Weapon . | . . . Unidentified Prototypes . | . . . Parts Lost 4 | . 1 3 Power 2 | . 1 1 Propulsion 1 | . . 1 Utility . | . . . Weapon 1 | . . 1 Highest Loss Streak 2 | . 1 2 To Critical Strikes . | . . . Average Backups 15 | 4 18 10 Power 1 | . 1 . Propulsion 4 | 2 5 3 Utility 4 | . 5 2 Weapon 4 | 1 5 4 Tool/Special . | . . . Unused Backups 30 | . 8 22 Power 2 | . 1 1 Propulsion 9 | . 3 6 Utility 12 | . 3 9 Weapon 7 | . 1 6 Tool/Special . | . . . Average Slot Usage (%) 91 | . 93 88 Engine 9 | . 7 14 Treads 14 | . 14 14 Wheel 13 | . 14 13 Device 7 | . 11 . Storage 10 | . 14 3 Protection 6 | . 2 13 Energy Gun 13 | . 13 13 Ballistic Gun 13 | . 14 11 Peak Build Rating 12 | 7 12 12 Average Rating 9 | 6 8 10 On Entrance 6 | . 7 12 Naked Turns . | . . . Heaviest Build 93 | 15 91 93 Greatest Support 20 | 10 16 20 Greatest Overweight (x) 8 | 1 8 8 Average Overweight (x) 4 | . 5 2 Largest Inventory Capacity 25 | 8 25 25 Average Capacity 18 | 7 22 10 Most Carried 25 | 8 25 25 Average Carried 15 | 4 18 9 Final Capacity 25 | 8 25 5 Final Carried 25 | 8 25 5 Class Distribution -------------------- 91% | Mutant 8% | Scavenger-Mutant Dominant Class ---------------- Mutant | -10/Materials Mutant | -10/Subcaves Resources | -11 -10 -10 ----------- Run | Yrd Mat Sub Matter Collected 1208 | 395 586 227 Remotely . | . . . Salvage Created 1394 | 160 803 431 Parts 112 | 12 65 35 Haulers Intercepted 1 | . 1 . Recyclers Shooed 3 | . 3 . Parts Field Recycled . | . . . Retrieved Matter . | . . . Parts Self-Destructed . | . . . Prevented . | . . . Kills | -11 -10 -10 ------- Run | Yrd Mat Sub Combat Hostiles Destroyed 21 | . 12 9 Guns 21 | . 12 9 Classes Destroyed 11 | 3 6 2 Worker 11 | 2 9 . Builder 1 | . 1 . Tunneler 3 | 3 . . Hauler 1 | . 1 . Recycler 2 | 1 1 . Operator 1 | . 1 . Watcher 3 | . 3 . Swarmer 6 | . 6 . Grunt 6 | . 6 . Artisan 1 | . . 1 Subdweller 9 | . . 9 Best Kill Streak 7 | 2 7 2 Combat Bots Only 5 | . 5 2 Max Kills in Single Turn 2 | 1 2 1 Gunslinging . | . . . Exploded . | . . . Melee . | . . . Uniques/NPCs Destroyed . | . . . Combat | -11 -10 -10 -------- Run | Yrd Mat Sub Hostile Shots Fired 145 | . 69 76 Missed 41 | . 15 26 Hits 104 | . 54 50 Projectile 104 | . 54 50 Critical Strikes 4 | . 1 3 Damage Taken 1648 | . 515 1133 Core 267 | . 84 183 Absorbed by Shields . | . . . Regen/Repaired (Parts) 58 | . 58 . Core Remaining (%) 100 | 100 . . Volleys Fired 143 | 12 79 52 Largest 2 | 2 2 2 Hottest 150 | 70 70 150 Shots Fired 285 | 24 154 107 Gun 277 | 24 154 99 Cannon . | . . . Launcher . | . . . Special 8 | . . 8 Kinetic 136 | 12 79 45 Thermal 149 | 12 75 62 Explosive . | . . . Electromagnetic . | . . . Robot Hit Streak 18 | 5 9 18 Robot Miss Streak 5 | 3 5 2 Penetration Max . | . . . Secondary Targets 2 | . 2 . Max Gunslinging Chain 1 | . 1 . Shots Hit Robots 178 | 15 95 68 Core Hits 66 | 6 39 21 Critical Kills . | . . . Critical Parts Destroyed 1 | . 1 . Critical Strikes 10 | . 8 2 Burn 8 | . 7 1 Destroy 2 | . 1 1 Melee Attacks . | . . . Impact . | . . . Slashing . | . . . Piercing . | . . . Sneak Attacks . | . . . Combat Hostiles . | . . . Follow-up Attacks . | . . . Damage Inflicted 2287 | 190 1230 867 Guns 2287 | 190 1230 867 Cannons . | . . . Explosions . | . . . Melee . | . . . Ramming . | . . . Kinetic 1144 | 87 641 416 Thermal 1143 | 103 589 451 Explosive . | . . . Electromagnetic . | . . . Impact . | . . . Slashing . | . . . Piercing . | . . . Highest Corruption 3 | . 3 3 Average Corruption 2 | . 2 3 Corruption Purged . | . . . Corruption Blocked . | . . . Effects 67 | . 45 22 Message Errors 11 | . 10 1 Matter Fused 15 | . 12 3 Heat Flow Errors 8 | . 5 3 Energy Discharges 15 | . 7 8 Data Loss (minor) 8 | . 6 2 Data Loss (major) 3 | . 1 2 Misfires 4 | . 1 3 Alerts 2 | . 2 . Weapon Failures 1 | . 1 . Overload Shots . | . . . Overflow Damage . | . . . Projectiles . | . . . Explosions . | . . . Melee . | . . . Knockbacks . | . . . Impact . | . . . Kinetic . | . . . Secondary . | . . . Self-Inflicted Damage . | . . . Shots . | . . . Rammed . | . . . Targets Rammed . | . . . Kicked . | . . . Crushed . | . . . Highest Temperature 335 | 54 335 198 Average Temperature 63 | 19 73 43 Received Heat Transfer 288 | . 129 159 Effects 1 | . 1 . Energy Bleed 1 | . 1 . Siege Activations . | . . . Martial Activations . | . . . Shielding Activations . | . . . Robots Disrupted . | . . . Combat Hostiles . | . . . Robots Corrupted . | . . . Combat Hostiles . | . . . Parts Fried . | . . . Impact Corruptions . | . . . Robots Melted . | . . . Combat Hostiles . | . . . Parts Melted 1 | . . 1 Heat Transferred 3959 | 296 2257 1406 Parts Sabotaged . | . . . Parts Stolen . | . . . Parts Stripped . | . . . Power Chain Reactions . | . . . Alert | -11 -10 -10 ------- Run | Yrd Mat Sub Maximum Alert Level . | . . . Low Security (%) 100 | 100 100 . Level 1 . | . . . Level 2 . | . . . Level 3 . | . . . Level 4 . | . . . Level 5 . | . . . High Security . | . . . Max Security . | . . . Peak Influence 112 | 10 112 . Initial . | . . . Average 38 | 2 40 . Influence Increases 476 | 30 446 . Destroy 0b10 Robot/C 240 | . 240 . Destroy 0b10 Robot/NC 110 | 30 80 . Destroy Leader 68 | . 68 . Successful Hack 43 | . 43 . Lose Combat Pursuer 15 | . 15 . Influence Decreases 476 | 30 384 62 Entered New Map 30 | . . 30 Time Decay 436 | 30 374 32 Lost Part 10 | . 10 . Squads Dispatched 2 | . 2 . Investigation 1 | . 1 . Extermination . | . . . Reinforcement 1 | . 1 . Assault . | . . . Garrison . | . . . Intercept . | . . . Searches Triggered . | . . . Construction Impeded . | . . . Haulers Reinforced . | . . . Active Scanning Responses . | . . . Cargo Convoy Interrupts . | . . . Stealth | -11 -10 -10 --------- Run | Yrd Mat Sub Distress Signals . | . . . Communications Jammed . | . . . Distress Signals . | . . . Times Spotted 31 | . 20 11 Peak Tracking Total 5 | . 5 3 Tactical Retreats 1 | . 1 . Traps | -11 -10 -10 ------- Run | Yrd Mat Sub Traps Triggered 2 | . 2 . Indirectly . | . . . Trap Hack Attempts . | . . . Triggered . | . . . Disarmed . | . . . Reprogrammed . | . . . Reused . | . . . Traps Extracted . | . . . Installed . | . . . Triggered . | . . . Machines | -11 -10 -10 ---------- Run | Yrd Mat Sub Machines Disabled . | . . . Max in Single Turn . | . . . Machines Repaired . | . . . Machines Dismantled . | . . . Machines Sabotaged . | . . . Overloaded Fab Kills . | . . . Hacking | -11 -10 -10 --------- Run | Yrd Mat Sub Machines Accessed 10 | . 10 . Terminals 7 | . 7 . Fabricators . | . . . Repair Stations 1 | . 1 . Recycling Units 2 | . 2 . Scanalyzers . | . . . Garrison Access . | . . . Total Hacks 29 | . 29 . Successful 16 | . 16 . Failed 12 | . 12 . Catastrophic . | . . . Database Lockouts 1 | . 1 . Manual 17 | . 17 . Terminals 21 | . 21 . Fabricators . | . . . Repair Stations 3 | . 3 . Recycling Units 5 | . 5 . Scanalyzers . | . . . Garrison Access . | . . . Terminal Hacks 5 | . 5 . Robot Analysis 1 | . 1 . Prototype ID Bank 3 | . 3 . Terminal Index 1 | . 1 . Fabricator Hacks . | . . . Repair Station Hacks 2 | . 2 . Scan Component 1 | . 1 . Repair 1 | . 1 . Recycling Unit Hacks 2 | . 2 . Report Inventory 2 | . 2 . Scanalyzer . | . . . Garrison Access Hacks . | . . . Unauthorized Hacks 7 | . 7 . Terminals 5 | . 5 . Assimilate 1 | . 1 . Botnet 3 | . 3 . Operators 1 | . 1 . Fabricators . | . . . Repair Stations . | . . . Recycling Units 2 | . 2 . Reject 2 | . 2 . Scanalyzers . | . . . Garrison Access . | . . . Data Cores Recovered . | . . . Used . | . . . Hacking Detections 9 | . 9 . Full Trace Events 1 | . 1 . Feedback Events 1 | . 1 . Corruption 1 | . 1 . Feedback Blocked . | . . . Robot Schematics Acquired . | . . . Robots Built . | . . . Authchips . | . . . Time . | . . . Total Robot Build Rating . | . . . Part Schematics Acquired . | . . . Parts Built . | . . . Authchips . | . . . Time . | . . . Total Part Build Rating . | . . . Parts Repaired 1 | . 1 . Time 26 | . 26 . Parts Recycled . | . . . Recycled Matter . | . . . Retrieved Matter . | . . . Retrieved Components . | . . . Parts Scanalyzed . | . . . Part Schematics Acquired . | . . . Parts Damaged . | . . . Bothacking | -11 -10 -10 ------------ Run | Yrd Mat Sub Used RIF Installer . | . . . Robots Hacked . | . . . Non-combat . | . . . Combat . | . . . Robot Hacks Applied . | . . . Relay Couplers Released . | . . . Fabnet Peak Effective % . | . . . Robots Rewired . | . . . Allies Hacked . | . . . Hacks Repelled . | . . . Allies | -11 -10 -10 -------- Run | Yrd Mat Sub Total Allies 1 | . 1 . Largest Group 1 | . 1 1 Highest-Rated Group 10 | . 10 10 Highest-Rated Ally 10 | . 10 10 Total Orders . | . . . Ally Attacks . | . . . Total Damage . | . . . Kills . | . . . Allies Corrupted . | . . . Allies Melted . | . . . Intel | -11 -10 -10 ------- Run | Yrd Mat Sub Active Infowar (turns) 2094 | 87 2007 . Seismic 2094 | 87 2007 . Robot Analysis Total 1 | . 1 . Derelict Logs Recovered . | . . . Drone Launches . | . . . Drone Recoveries . | . . . Exploration | -11 -10 -10 ------------- Run | Yrd Mat Sub Turns Passed 3813 | 139 2476 1198 Spaces Moved 2126 | 91 1254 781 Core 6 | 3 . 3 Treads . | . . . Legs . | . . . Wheels 2120 | 88 1254 778 Hover . | . . . Flight . | . . . Fastest Speed 50 | 50 95 80 Average Speed 148 | 91 167 123 Slowest Speed 450 | 95 200 450 Overloaded Moves . | . . . Propulsion Burnouts . | . . . Robots Hopped . | . . . Potential Cave-ins . | . . . Cave-ins Triggered . | . . . Exploration Rate (%) 46 | 5 100 34 Regions Visited 2 Branch Regions 1 Pre-discovered Areas . | . . . Known Exits Taken . | . . . Unknown Exits Taken 2 | 1 1 . Scrap Searched . | . . . Spaces Dug . | . . . Terrain Destroyed . | . . . Melee . | . . . Projectile . | . . . AOE . | . . . Terrain Rammed . | . . . Walls Destroyed . | . . . Machines Disabled . | . . . Actions | -11 -10 -10 --------- Run | Yrd Mat Sub Total 2508 | 119 1485 904 Wait 138 | 2 97 39 Move 2124 | 90 1253 781 Hop . | . . . Pick Up 39 | 8 27 4 Fast Attach 14 | 7 3 4 Attach 3 | . 1 2 Detach 1 | . . 1 Swap 13 | . 7 6 Drop 26 | . 18 8 Fire 143 | 12 79 52 Melee . | . . . Ram . | . . . Kick . | . . . Crush . | . . . Escape Stasis . | . . . Rewire . | . . . Trap . | . . . Miscellaneous 7 | . . 7 Route ------- -11/Scrapyard -10/Materials (discovered 5 exits: [*Mat x3] / [*Min] / [*Sub]) -10/Subcaves History --------- Turn | Location | Event 27 | -11/Scrapyard | Discovered new exit (range 15) 140 | -11/Scrapyard | Entered Materials 306 | -10/Materials | Build established: Mutant 401 | -10/Materials | Discovered new exit (range 8) 413 | -10/Materials | Central database locked down 687 | -10/Materials | Discovered new exit (range 5) 993 | -10/Materials | Discovered new exit (range 5) 1313 | -10/Materials | Repaired Med. Laser 1693 | -10/Materials | Discovered new exit (range 14) 1765 | -10/Materials | Discovered new exit (range 10) 2616 | -10/Materials | Entered Subcaves 2616 | -10/Subcaves | Accompanied by 1 ally 2804 | -10/Subcaves | Ambushed by angry Subdweller bent on revenge 2822 | -10/Subcaves | Core integrity fell below 50% 3219 | -10/Subcaves | Build established: Scavenger-Mutant 3523 | -10/Subcaves | Build established: Mutant 3701 | -10/Subcaves | Core integrity fell below 20% 3814 | -10/Subcaves | Destroyed by BE-XOI(R) with Subdweller Laser Last Messages --------------- 03609_ Wheel destroyed. 03611_ U3-SGP(R) destroyed. 03619_ B3-YBO(R) affixes Scrap Shield Fragment to Scrap Shield. 03625_ Sub. Power Source melted. 03625_ B3-YBO(R) destroyed. 03637_ Scrap Shield Fragment affixed to Scrap Shield (+39). 03642_ Acquired Sub. Monowheel. 03648_ Acquired 36 matter. 03696_ System corrupted: Heat flow error (+150). 03698_ GM-F4I(R) suffers critical hit (Burn). 03701_ GM-F4I(R) destroyed. 03715_ Acquired 12 matter. 03719_ System corrupted: Energy discharge (-62). 03727_ F7-9V3(R) destroyed. 03730_ Acquired 12 matter. 03734_ Scrap Shield Fragment affixed to Scrap Shield (+45). 03808_ WU-MYE(R) destroyed. Map ----- +----------------------------------------------------+ | ?????????????????????????????????????????????????? | | ?????????????????????????????????????????????????? | | ?????????????????????????????????????????????????? | | ?????????????????????????????????????????????????? | | ?????????????????????????????????????????????????? | | ?????????????????????????????????????????????????? | | ?????????????????????????????????????????????????? | | ????????????????????#????????????????????????????? | | ??????????????????## #???????????????????????????? | | ?????????????????? #??????????????????????????? | | ????????????? ???? #?????????????????????????? | | ????????????? ??? ?????????????????????????? | | ???????????? ?? ?????????????????????????? | | ???????????? ?? ?????????????????????????? | | ??????????? #?# ?????????????????????????? | | ???????????? ## ?????###?#####???????????? | | ?????????????? ????# ## ##??????????? | | ???????????????? ##?? ??????????? | | ?????????????????? ##? ????????????? | | ???????????????????? ## #??????????????? | | ?????????????????????? ## #???????????????? | | ???????????????????????#!* ####????????????? | | ???????????????????????##R! ###??????????? | | ????????????????????????#[ ???????? | | ???????????????????????## #### ? ?????? | | ???????????????????????# @ ##??????? ?? ????? | | ???????????????????????# ##???????? ? ?????? | | ???????????????????????# ##??????? ??????? | | ???????????????????????# ##?????## #???????? | | ???????????????????????## ## #######""#???????? | | ????????????????????????######" # # ""####????? | | ????????????????????????????#" "" "" ##???? | | ????????????????????????????### " "" #???? | | ??????????????????????????????## " # ###" # #???? | | ???????????????????????????????## # "###### ###??? | | ????????????????????????????????### " #??## ##?? | | ????????????????????????????????###" ####& ### | | ???????????????????????????????## """ ##*%&& # | | ???????????????????????????????# "" "]%![= ## | | ???????????????????????????????# "" !## ### | | ???????????????????????????????## """###" ## | | ????????????????????????????????##""##?### | | ?????????????????????????????????###?????### # | | ???????????????????????????????????????????#### | | ?????????????????????????????????????????????# # | | ?????????????????????????????????????????????# # | | ?????????????????????????????????????????????# | | ?????????????????????????????????????????????## | | ?????????????????????????????????????????????# | | ?????????????????????????????????????????????## | +----------------------------------------------------+ Best States ------------- Heat Dissipation 25 Energy Generation 10 Energy Capacity 250 Matter Stores 300 Matter Capacity 300 Sight Range 16 Terrain Scan Density 10 Armor Coverage 800 Evasion (%) 44 Item Schematics ----------------- None Robot Schematics ------------------ None Fabricated ------------ Nothing Repaired ---------- Med. Laser | 17% | -10/Materials Alien Tech Used ----------------- None Achievements -------------- None Challenges ------------ None Game ------ Seed DirectedCombatPendant Manual? 0 Play Time 00:23:37 Cumulative 345.6 hours Start 2025.08.25 @ 00:11:38 End 2025.08.25 @ 01:02:37 Sessions 1 Manual Loads 0 Difficulty Rogue Special Mode None Game No. 292 Rogue 292 Adventurer 0 Explorer 0 Win Type - Total 2 Types 2/0/0/0/0/0/0/0/0/0 Lore% 75 Gallery% 68 Achievement% 53 Wizard Run 0 Options --------- Layout 2 ASCII 1 Keyboard 1 Movement Numpad Keybinds 0 Fullscreen 2 Font 32/TamsynBold Map View 50x44 Zoom Use 0% Tactical HUD 1 Map Filters NONE Filters NONE Steam 1 RUN: f451783d-715e-495b-8be2-961831f1dc07